fUST/lending_fUST_20260205
["ID","MTS","AMOUNT","RATE_DAILY","PERIOD"]
[404560644,1770292240069,-500.0,0.0005863,120]
[404560646,1770292240079,-500.0,0.0005863,120]
[404560648,1770292240088,-500.0,0.0005863,120]
[404560650,1770292240097,-500.0,0.0005863,30]
[404560651,1770292240106,-500.0,0.0005863,120]
[404560652,1770292240115,-500.0,0.0005863,120]
[404560653,1770292240124,-500.0,0.0005863,120]
[404560654,1770292240134,-500.0,0.0005863,120]
[404560655,1770292240143,-4272.13,0.0005863,120]
[404560656,1770292240152,-500.0,0.0005863,120]
[404560657,1770292240162,-500.0,0.0005863,120]
[404560658,1770292240172,-500.0,0.0005863,120]
[404560659,1770292240181,-620.53,0.0005863,120]
[404560660,1770292240190,-500.0,0.0005863,120]
[404560661,1770292240275,-500.0,0.0005863,21]
[404560663,1770292240285,-500.0,0.0005863,120]
[404560665,1770292240294,-500.0,0.0005863,120]
[404560667,1770292240304,-500.0,0.0005863,120]
[404560669,1770292240314,-3761.00347299,0.00058886,2]
[404560671,1770292240323,-7707.1402576,0.0005898,5]
[404560673,1770292240332,-167.0,0.00059,120]
[404560674,1770292240344,-166.0,0.00059,120]
[404560676,1770292240353,-3853.5701288,0.00059168,5]
[404560678,1770292240363,-500.0,0.00059177,120]
[404560680,1770292240372,-263.86,0.00059177,120]
[404560682,1770292240382,-500.0,0.00059177,120]
[404560684,1770292240393,-500.0,0.00059177,120]
[404560687,1770292240408,-500.0,0.00059177,120]
[404560688,1770292240421,-799.25,0.00059178,2]
[404560690,1770292240430,-500.0,0.00059178,120]
[404560692,1770292240442,-500.0,0.00059178,120]
[404560694,1770292240453,-500.0,0.00059178,30]
[404560696,1770292240463,-500.0,0.00059178,120]
[404560698,1770292240473,-500.0,0.00059178,120]
[404560700,1770292240482,-500.0,0.00059178,120]
[404560702,1770292240491,-500.0,0.00059178,120]
[404560704,1770292240500,-4272.13,0.00059178,120]
[404560706,1770292240510,-500.0,0.00059178,120]
[404560708,1770292240519,-500.0,0.00059178,120]
[404560710,1770292240529,-620.53,0.00059178,120]
[404560712,1770292240538,-207.75432954,0.00059178,120]
[404560714,1770292240547,-500.0,0.00059178,21]
[404560715,1770292240557,-500.0,0.00059178,120]
[404560718,1770292240567,-500.0,0.00059178,120]
[404560719,1770292240576,-500.0,0.00059178,120]
[404560721,1770292240586,-600.0,0.0005924,120]
[404560723,1770292240595,-1205.5812135,0.00059434,2]
[404560725,1770292240605,-2224.12993248,0.0005948,2]
[404560727,1770292240614,-487.0,0.00059714,120]
[404560729,1770292240623,-487.0,0.00059714,120]
[404560731,1770292240633,-487.0,0.00059714,120]
[404560733,1770292240642,-487.0,0.00059714,120]
[404560735,1770292240652,-487.0,0.00059714,120]
[404560737,1770292240661,-487.0,0.00059714,120]
[404560739,1770292240671,-487.0,0.00059714,120]
[404560741,1770292240680,-487.0,0.00059714,120]
[404560743,1770292240689,-703.89,0.00059714,120]
[404560745,1770292240699,-3853.5701288,0.00059714,5]
[404560747,1770292240708,-3853.5701288,0.00059716,5]
[404560749,1770292240717,-151.0,0.00059724,120]
[404560751,1770292240727,-221.837857,0.00059724,120]
[404560753,1770292240737,-221.837857,0.00059724,120]
[404560755,1770292240746,-221.837857,0.00059724,120]
[404560757,1770292240755,-221.837857,0.00059724,120]
[404560759,1770292240764,-221.837857,0.00059724,120]
[404560760,1770292240774,-221.837857,0.00059724,120]
[404560762,1770292240783,-221.837857,0.00059724,120]
[404560764,1770292240793,-221.837857,0.00059724,120]
[404560766,1770292240803,-151.0,0.00059724,120]
[404560768,1770292240812,-151.0,0.00059724,120]
[404560770,1770292240822,-151.0,0.00059724,120]
[404560772,1770292240831,-151.0,0.00059724,120]
[404560774,1770292240841,-264.962399,0.00059724,120]
[404560776,1770292240851,-500.0,0.00059725,120]
[404560778,1770292240860,-263.86,0.00059725,120]
[404560780,1770292240869,-500.0,0.00059725,120]
[404560782,1770292240879,-184.418852,0.00059725,120]
[404560784,1770292240887,-184.418852,0.00059725,120]
[404560786,1770292240897,-184.418852,0.00059725,120]
[404560788,1770292240906,-184.418852,0.00059725,120]
[404560790,1770292240916,-500.0,0.00059725,120]
[404560792,1770292240925,-500.0,0.00059725,120]
[404560794,1770292240935,-799.25,0.00059726,2]
[404560796,1770292240943,-500.0,0.00059726,120]
[404560798,1770292240953,-500.0,0.00059726,120]
[404560800,1770292240962,-500.0,0.00059726,30]
[404560802,1770292240972,-500.0,0.00059726,120]
[404560804,1770292240981,-500.0,0.00059726,120]
[404560806,1770292240991,-500.0,0.00059726,120]
[404560808,1770292241000,-482.03234185,0.00059726,120]
[404560810,1770292241013,-4272.13,0.00059726,120]
[404560812,1770292241031,-500.0,0.00059726,120]
[404560814,1770292241043,-500.0,0.00059726,120]
[404560816,1770292241052,-620.53,0.00059726,120]
[404560817,1770292241064,-500.0,0.00059726,21]
[404560819,1770292241084,-250.13098628,0.00059726,120]
[404560821,1770292241101,-151.0,0.00059726,120]
[404560823,1770292241114,-500.0,0.00059726,120]
[404560825,1770292241127,-500.0,0.00059726,120]
[404560827,1770292241138,-151.0,0.00059726,120]
[404560829,1770292241147,-151.0,0.00059726,120]
[404560831,1770292241156,-151.0,0.00059726,120]
[404560833,1770292241167,-258.0,0.00059945,120]
[404560835,1770292241176,-205.94335388,0.0006,120]
[404560837,1770292241186,-213.25953077,0.0006,120]
[404560839,1770292241199,-154.10571191,0.0006,5]
[404560841,1770292241210,-500.0,0.00060273,120]
[404560843,1770292241219,-799.25,0.00060273,2]
[404560845,1770292241228,-263.86,0.00060273,120]
[404560847,1770292241237,-500.0,0.00060273,120]
[404560849,1770292241246,-207.005795,0.00060273,120]
[404560851,1770292241256,-500.0,0.00060273,120]
[404560853,1770292241267,-500.0,0.00060273,120]
[404560855,1770292241276,-500.0,0.00060273,120]
[404560857,1770292241286,-500.0,0.00060273,120]
[404560859,1770292241296,-500.0,0.00060273,120]
[404560861,1770292241306,-500.0,0.00060273,120]
[404560863,1770292241317,-500.0,0.00060273,120]
[404560865,1770292241326,-4272.13,0.00060273,120]
[404560867,1770292241335,-500.0,0.00060273,120]
[404560869,1770292241344,-500.0,0.00060273,120]
[404560871,1770292241353,-620.53,0.00060273,120]
[404560873,1770292241365,-500.0,0.00060273,21]
[404560875,1770292241374,-500.0,0.00060273,120]
[404560877,1770292241385,-500.0,0.00060273,120]
[404560879,1770292241397,-3853.5701288,0.0006029,5]
[404560881,1770292241406,-44540.03,0.000603,2]
[404560883,1770292241417,-184.418852,0.000603,120]
[404560885,1770292241428,-184.418852,0.000603,120]
[404560887,1770292241440,-184.418852,0.000603,120]
[404560889,1770292241449,-184.418852,0.000603,120]
[404560891,1770292241459,-221.837857,0.000603,120]
[404560893,1770292241471,-221.837857,0.000603,120]
[404560894,1770292241480,-221.837857,0.000603,120]
[404560896,1770292241490,-221.837857,0.000603,120]
[404560898,1770292241499,-1196.86,0.000603,14]
[404560900,1770292241507,-151.0,0.000603,120]
[404560902,1770292241519,-151.0,0.000603,120]
[404560904,1770292241529,-151.0,0.000603,120]
[404560906,1770292241537,-7707.1402576,0.0006058,5]
[404560908,1770292241547,-88888.0,0.0006059,120]
[404560910,1770292241556,-221.837857,0.0006059,120]
[404560912,1770292241565,-221.837857,0.0006059,120]
[404560914,1770292241575,-221.837857,0.0006059,120]
[404560916,1770292241584,-221.837857,0.0006059,120]
[404560918,1770292241593,-151.0,0.0006059,120]
[404560920,1770292241602,-151.0,0.0006059,120]
[404560922,1770292241612,-151.0,0.0006059,120]
[404560924,1770292241622,-281.80460203,0.000606,120]
[404560926,1770292241636,-184.418852,0.0006069,120]
[404560928,1770292241645,-184.418852,0.0006069,120]
[404560930,1770292241656,-184.418852,0.0006069,120]
[404560932,1770292241666,-184.418852,0.0006069,120]
[404560934,1770292241675,-500.0,0.00060821,120]
[404560936,1770292241684,-799.25,0.00060821,2]
[404560938,1770292241693,-263.86,0.00060821,120]
[404560940,1770292241702,-500.0,0.00060821,120]
[404560942,1770292241712,-500.0,0.00060821,120]
[404560944,1770292241721,-500.0,0.00060821,120]
[404560946,1770292241730,-500.0,0.00060821,120]
[404560948,1770292241740,-500.0,0.00060821,120]
[404560950,1770292241751,-500.0,0.00060821,120]
[404560952,1770292241761,-4272.13,0.00060821,120]
[404560954,1770292241770,-500.0,0.00060821,120]
[404560956,1770292241779,-500.0,0.00060821,120]
[404560958,1770292241789,-620.53,0.00060821,120]
[404560960,1770292241798,-500.0,0.00060821,21]
[404560962,1770292241807,-500.0,0.00060821,120]
[404560964,1770292241815,-500.0,0.00060821,120]
[404560966,1770292241824,-741.26793723,0.00061092,2]
[404560968,1770292241833,-500.0,0.00061369,120]
[404560970,1770292241843,-799.25,0.00061369,2]
[404560972,1770292241852,-263.86,0.00061369,120]
[404560974,1770292241862,-314.12981,0.00061369,120]
[404560976,1770292241871,-500.0,0.00061369,120]
[404560978,1770292241880,-500.0,0.00061369,120]
[404560980,1770292241889,-500.0,0.00061369,120]
[404560982,1770292241897,-500.0,0.00061369,120]
[404560984,1770292241906,-500.0,0.00061369,120]
[404560986,1770292241915,-4272.13,0.00061369,120]
[404560988,1770292241924,-500.0,0.00061369,120]
[404560989,1770292241933,-500.0,0.00061369,120]
[404560992,1770292241942,-620.53,0.00061369,120]
[404560993,1770292241951,-500.0,0.00061369,21]
[404560995,1770292241960,-500.0,0.00061369,120]
[404560997,1770292241970,-500.0,0.00061369,120]
[404561000,1770292241979,-1391.6613714,0.00061558,2]
[404561001,1770292241988,-151.0,0.000616,120]
[404561004,1770292241998,-166.0,0.00061705,120]
[404561005,1770292242007,-184.418852,0.00061817,120]
[404561007,1770292242016,-184.418852,0.00061817,120]
[404561009,1770292242025,-184.418852,0.00061817,120]
[404561011,1770292242035,-184.41886,0.00061817,120]
[404561013,1770292242044,-3853.5701288,0.00061907,5]
[404561016,1770292242053,-155.498,0.00061916,120]
[404561018,1770292242064,-500.0,0.00061917,120]
[404561020,1770292242072,-799.25,0.00061917,2]
[404561022,1770292242081,-263.86,0.00061917,120]
[404561024,1770292242090,-500.0,0.00061917,120]
[404561025,1770292242099,-500.0,0.00061917,120]
[404561027,1770292242109,-500.0,0.00061917,120]
[404561029,1770292242118,-500.0,0.00061917,120]
[404561031,1770292242127,-500.0,0.00061917,120]
[404561033,1770292242136,-4272.13,0.00061917,120]
[404561035,1770292242145,-477.7532886,0.00061917,120]
[404561037,1770292242154,-500.0,0.00061917,120]
[404561039,1770292242163,-620.53,0.00061917,120]
[404561042,1770292242175,-500.0,0.00061917,21]
[404561044,1770292242184,-500.0,0.00061917,120]
[404561046,1770292242194,-500.0,0.00061917,120]
[404561048,1770292242204,-285.0,0.00061945,120]
[404561050,1770292242213,-3853.5701288,0.0006199,5]
[404561051,1770292242222,-50001.79585193,0.00062,120]
[404561053,1770292242231,-221.837857,0.00062,120]
[404561055,1770292242241,-221.837857,0.00062,120]
[404561057,1770292242250,-221.837857,0.00062,120]
[404561059,1770292242258,-221.83786,0.00062,120]
[404561061,1770292242268,-151.0,0.00062,120]
[404561063,1770292242277,-151.0,0.00062,120]
[404561065,1770292242286,-151.0,0.00062,120]
[404561067,1770292242296,-281.80460203,0.000624,120]
[404561069,1770292242305,-500.0,0.00062465,120]
[404561071,1770292242314,-799.25,0.00062465,2]
[404561073,1770292242322,-263.86,0.00062465,120]
[404561075,1770292242331,-512.93025335,0.00062465,120]
[404561077,1770292242345,-500.0,0.00062465,120]
[404561079,1770292242354,-500.0,0.00062465,120]
[404561081,1770292242362,-178.71,0.00062465,120]
[404561083,1770292242371,-500.0,0.00062465,120]
[404561085,1770292242380,-4272.13,0.00062465,120]
[404561087,1770292242391,-500.0,0.00062465,120]
[404561089,1770292242403,-620.53,0.00062465,120]
[404561091,1770292242412,-500.0,0.00062465,21]
[404561093,1770292242420,-368.73,0.00062465,120]
[404561095,1770292242430,-500.0,0.00062465,120]
[404561097,1770292242439,-2000.0,0.00062986,35]
[404561106,1770292242518,-500.0,0.00063013,120]
[404561108,1770292242529,-799.25,0.00063013,2]
[404561110,1770292242541,-263.86,0.00063013,120]
[404561112,1770292242552,-500.0,0.00063013,120]
[404561114,1770292242563,-500.0,0.00063013,120]
[404561116,1770292242576,-500.0,0.00063013,120]
[404561118,1770292242587,-4272.13,0.00063013,120]
[404561120,1770292242599,-500.0,0.00063013,120]
[404561122,1770292242610,-620.53,0.00063013,120]
[404561124,1770292242620,-500.0,0.00063013,21]
[404561126,1770292242630,-500.0,0.00063013,120]
[404561128,1770292242640,-487.0,0.00063014,120]
[404561130,1770292242650,-487.0,0.00063014,120]
[404561132,1770292242660,-487.0,0.00063014,120]
[404561134,1770292242676,-487.0,0.00063014,120]
[404561136,1770292242685,-487.0,0.00063014,120]
[404561138,1770292242695,-487.0,0.00063014,120]
[404561140,1770292242704,-487.0,0.00063014,120]
[404561142,1770292242713,-943.66,0.00063014,120]
[404561144,1770292242722,-500.0,0.00063477,120]
[404561146,1770292242732,-500.0,0.00063561,120]
[404561148,1770292242741,-799.25,0.00063561,2]
[404561150,1770292242751,-263.86,0.00063561,120]
[404561152,1770292242760,-336.26631149,0.00063561,120]
[404561154,1770292242770,-500.0,0.00063561,120]
[404561156,1770292242779,-500.0,0.00063561,120]
[404561158,1770292242792,-4272.13,0.00063561,120]
[404561160,1770292242801,-500.0,0.00063561,120]
[404561162,1770292242810,-620.53,0.00063561,120]
[404561164,1770292242819,-500.0,0.00063561,21]
[404561166,1770292242828,-225.32591658,0.00063561,120]
[404561168,1770292242838,-500.0,0.00063802,120]
[404561170,1770292242847,-312.0,0.00063945,120]
[404561172,1770292242856,-3853.5701288,0.00064099,5]
[404561174,1770292242865,-500.0,0.00064109,120]
[404561176,1770292242874,-799.25,0.00064109,2]
[404561178,1770292242884,-263.86,0.00064109,120]
[404561180,1770292242893,-500.0,0.00064109,120]
[404561181,1770292242902,-500.0,0.00064109,120]
[404561182,1770292242911,-4272.13,0.00064109,120]
[404561183,1770292242923,-500.0,0.00064109,120]
[404561184,1770292242932,-620.53,0.00064109,120]
[404561185,1770292242941,-500.0,0.00064109,21]
[404561186,1770292242950,-281.80460203,0.000643,120]
[404561187,1770292242960,-500.0,0.00064656,120]
[404561188,1770292242969,-263.86,0.00064656,120]
[404561189,1770292242979,-799.25,0.00064657,2]
[404561190,1770292242989,-500.0,0.00064657,120]
[404561191,1770292242999,-500.0,0.00064657,120]
[404561192,1770292243008,-4272.13,0.00064657,120]
[404561193,1770292243018,-500.0,0.00064657,120]
[404561194,1770292243027,-620.53,0.00064657,120]
[404561195,1770292243037,-500.0,0.00064657,21]
[404561196,1770292243047,-1196.86,0.000647,14]
[404561197,1770292243056,-283.75634086,0.00065,120]
[404561198,1770292243066,-720.0,0.00065164,120]
[404561199,1770292243076,-500.0,0.00065204,120]
[404561201,1770292243086,-263.86,0.00065204,120]
[404561203,1770292243095,-799.25,0.00065205,2]
[404561205,1770292243104,-500.0,0.00065205,120]
[404561207,1770292243120,-500.0,0.00065205,120]
[404561209,1770292243130,-4272.13,0.00065205,120]
[404561211,1770292243139,-500.0,0.00065205,120]
[404561213,1770292243148,-620.53,0.00065205,120]
[404561215,1770292243157,-500.0,0.00065205,21]
[404561217,1770292243170,-3853.5701288,0.0006529,5]
[404561219,1770292243179,-44540.03,0.000653,2]
[404561221,1770292243188,-151.0,0.000654,120]
[404561223,1770292243197,-500.0,0.00065752,120]
[404561225,1770292243206,-263.86,0.00065752,120]
[404561227,1770292243215,-799.25,0.00065753,2]
[404561229,1770292243224,-455.7,0.00065753,120]
[404561231,1770292243233,-500.0,0.00065753,120]
[404561233,1770292243242,-4272.13,0.00065753,120]
[404561235,1770292243251,-500.0,0.00065753,120]
[404561237,1770292243260,-620.53,0.00065753,120]
[404561239,1770292243270,-169.38620674,0.00065753,21]
[404561241,1770292243279,-312.0,0.00065945,120]
[404561243,1770292243288,-281.80460203,0.000662,120]
[404561245,1770292243298,-500.0,0.000663,120]
[404561247,1770292243308,-263.86,0.000663,120]
[404561249,1770292243316,-799.25,0.00066301,2]
[404561251,1770292243325,-500.0,0.00066301,120]
[404561253,1770292243334,-4272.13,0.00066301,120]
[404561255,1770292243343,-500.0,0.00066301,120]
[404561257,1770292243353,-620.53,0.00066301,120]
[404561259,1770292243363,-1100.0,0.00066438,120]
[404561261,1770292243372,-3853.5701288,0.00066839,6]
[404561263,1770292243381,-500.0,0.00066848,120]
[404561264,1770292243390,-263.86,0.00066848,120]
[404561266,1770292243404,-799.25,0.00066849,2]
[404561268,1770292243414,-364.83,0.00066849,120]
[404561271,1770292243423,-4272.13,0.00066849,120]
[404561272,1770292243433,-500.0,0.00066849,120]
[404561274,1770292243442,-620.53,0.00066849,120]
[404561277,1770292243452,-781.0,0.000673,30]
[404561279,1770292243461,-500.0,0.00067396,120]
[404561280,1770292243471,-263.86,0.00067396,120]
[404561282,1770292243480,-799.2894835,0.00067397,2]
[404561284,1770292243490,-4272.3,0.00067397,120]
[404561286,1770292243498,-270.7016334,0.00067397,120]
[404561288,1770292243508,-620.53682,0.00067397,120]
[404561290,1770292243517,-368.5,0.00067597,120]
[404561293,1770292243527,-296.01684125,0.00067944,120]
[404561294,1770292243536,-263.86,0.00067944,120]
[404561297,1770292243545,-390.861584,0.00068,120]
[404561299,1770292243555,-281.80460203,0.000682,120]
[404561300,1770292243564,-263.86,0.00068492,120]
[404561302,1770292243574,-500.0,0.00068493,120]
[404561304,1770292243583,-500.0,0.00068493,120]
[404561306,1770292243592,-500.0,0.00068493,120]
[404561308,1770292243601,-500.0,0.00068493,120]
[404561310,1770292243610,-483.96597367,0.00068493,120]
[404561312,1770292243619,-231.85309287,0.00068493,2]
[404561314,1770292243628,-263.88007141,0.0006904,120]
[404561316,1770292243637,-151.0,0.000693,120]
[404561318,1770292243646,-208.508348,0.0007,120]
[404561320,1770292243655,-4000.0,0.0007,120]
[404561322,1770292243664,-1196.86,0.0007,14]
[404561324,1770292243674,-3538.58346001,0.00071082,2]
[404561326,1770292243683,-864.0,0.0007168,120]
[404561328,1770292243692,-3853.5701288,0.0007179,6]
[404561330,1770292243702,-44540.03,0.000718,2]
[404561332,1770292243711,-1018.3507015,0.00072,120]
[404561334,1770292243723,-1444.0,0.00072603,120]
[404561336,1770292243732,-500.0,0.0007277,120]
[404561340,1770292243741,-151.0,0.000731,120]
[404561341,1770292243751,-150.0,0.00074437,120]
[404561344,1770292243760,-311.390896,0.00074437,120]
[404561347,1770292243769,-472.781792,0.00074437,120]
[404561348,1770292243778,-634.172688,0.00074437,120]
[404561351,1770292243787,-795.563585,0.00074437,120]
[404561353,1770292243796,-956.954481,0.00074437,120]
[404561355,1770292243805,-1118.345377,0.00074437,120]
[404561357,1770292243814,-1279.736274,0.00074437,120]
[404561359,1770292243823,-1441.12717,0.00074437,120]
[404561361,1770292243832,-1602.518066,0.00074437,120]
[404561363,1770292243841,-500.0,0.00074477,120]
[404561365,1770292243851,-150.0,0.00074841,120]
[404561367,1770292243860,-217.804776,0.00074841,120]
[404561369,1770292243869,-285.609553,0.00074841,120]
[404561371,1770292243878,-353.41433,0.00074841,120]
[404561373,1770292243887,-5000.0,0.00075712,120]
[404561375,1770292243896,-2224.12993248,0.00075796,2]
[404561377,1770292243905,-1000.0,0.00076,120]
[404561379,1770292243915,-500.0,0.00076355,120]
[404561381,1770292243924,-162.29983392,0.00076712,2]
[404561383,1770292243933,-154.0,0.00077,120]
[404561385,1770292243943,-166.0,0.00077749,120]
[404561387,1770292243952,-3853.5701288,0.00078838,7]
[404561389,1770292243962,-1000.0,0.00078848,120]
[404561391,1770292243971,-3000.0,0.00079,120]
[404561393,1770292243980,-991.461507,0.000798,120]
[404561395,1770292243989,-173.0,0.0008,120]
[404561397,1770292243998,-1196.86,0.0008,14]
[404561399,1770292244007,-151.0,0.000807,31]
[404561401,1770292244016,-170.37903869,0.00080822,7]
[404561403,1770292244025,-20000.0,0.0008089,120]
[404561405,1770292244034,-200.0,0.000809,120]
[404561407,1770292244043,-20000.0,0.00080988,120]
[404561409,1770292244052,-2000.0,0.00081,120]
[404561411,1770292244061,-800.0,0.00081109,90]
[404561413,1770292244070,-800.0,0.00081138,90]
[404561415,1770292244079,-800.0,0.00081226,90]
[404561417,1770292244087,-800.0,0.00081304,90]
[404561419,1770292244096,-800.0,0.00081362,90]
[404561421,1770292244106,-800.0,0.00081364,90]
[404561423,1770292244114,-800.0,0.00081497,90]
[404561425,1770292244123,-800.0,0.00081547,90]
[404561427,1770292244132,-800.0,0.00081583,90]
[404561429,1770292244140,-800.0,0.00081603,90]
[404561430,1770292244149,-800.0,0.00081614,90]
[404561432,1770292244158,-800.0,0.00081642,90]
[404561434,1770292244167,-800.0,0.00081642,90]
[404561436,1770292244176,-711.0,0.0008168,31]
[404561438,1770292244186,-3853.5701288,0.0008169,8]
[404561440,1770292244195,-44540.03,0.000817,2]
[404561442,1770292244205,-591.11441809,0.00081711,90]
[404561444,1770292244214,-800.0,0.00081737,90]
[404561446,1770292244222,-800.0,0.00081738,90]
[404561448,1770292244232,-800.0,0.00081846,90]
[404561450,1770292244241,-800.0,0.00081858,90]
[404561452,1770292244250,-200.0,0.000819,120]
[404561453,1770292244259,-800.0,0.00081901,90]
[404561454,1770292244267,-800.0,0.00081904,90]
[404561455,1770292244278,-800.0,0.00081934,90]
[404561456,1770292244287,-800.0,0.00081983,90]
[404561457,1770292244295,-392.66127152,0.00082,30]
[404561458,1770292244305,-392.66127152,0.00082,30]
[404561459,1770292244312,-354.04,0.00082182,120]
[404561460,1770292244320,-2940.6545209,0.00082603,30]
[404561461,1770292244329,-2940.6545209,0.00082603,30]
[404561462,1770292244338,-500.0,0.00082752,120]
[404561463,1770292244347,-200.0,0.000829,120]
[404561464,1770292244356,-179215.6473678,0.00083,120]
[404561465,1770292244365,-196.61,0.00083,60]
[404561466,1770292244373,-200.0,0.000839,120]
[404561467,1770292244383,-200.0,0.000849,120]
[404561468,1770292244393,-1196.86,0.000849,30]
[404561469,1770292244404,-264.02086497,0.00084932,120]
[404561470,1770292244414,-792.70662951,0.0008663,120]
[404561471,1770292244423,-1000.0,0.00086733,120]
[404561472,1770292244433,-244.0,0.00086733,120]
[404561473,1770292244443,-324.93816974,0.000891,2]
[404561474,1770292244520,-21450.7337472,0.000898,120]
[404561475,1770292244530,-2000.0,0.000899,120]
[404561476,1770292244540,-600.0,0.0009,120]
[404561477,1770292244548,-112570.7,0.0009,60]
[404561478,1770292244557,-7049.76558239,0.0009,120]
[404561479,1770292244566,-674.3,0.0009,120]
[404561480,1770292244575,-2224.12993248,0.00092111,2]
[404561481,1770292244584,-33893.10023671,0.00095,120]
[404561482,1770292244593,-1000.0,0.00095406,120]
[404561483,1770292244603,-492.0,0.00095406,120]
[404561484,1770292244612,-169.87,0.000955,30]
[404561485,1770292244621,-6071.0905601,0.000975,30]
[404561486,1770292244631,-44540.03,0.000975,2]
[404561487,1770292244640,-1414.84709801,0.0009876,120]
[404561488,1770292244650,-600.0,0.00099,120]
[404561489,1770292244660,-1000.0,0.00099,120]
[404561490,1770292244670,-269.72,0.00099828,120]
[404561491,1770292244680,-1000.0,0.00099999,120]
[404561492,1770292244689,-16189.3,0.001,30]
[404561493,1770292244699,-7595.35036193,0.001,120]
[404561494,1770292244708,-1000.0,0.001,120]
[404561495,1770292244718,-200.0,0.001,120]
[404561496,1770292244728,-17525.180666,0.00103067,120]
[404561497,1770292244737,-1000.0,0.00104946,120]
[404561498,1770292244747,-791.0,0.00104946,120]
[404561499,1770292244756,-200.0,0.00108345,120]
[404561500,1770292244765,-2224.12993248,0.00108427,2]
[404561501,1770292244775,-1196.86,0.00109,30]
[404561502,1770292244784,-156.0,0.0011,120]
[404561503,1770292244794,-2500.0,0.0011,120]
[404561504,1770292244803,-720.0,0.0011007,31]
[404561505,1770292244812,-200.0,0.00110872,120]
[404561506,1770292244822,-2496.0,0.001111,80]
[404561507,1770292244831,-711.0,0.0011266,31]
[404561508,1770292244841,-166454.54325191,0.00114,120]
[404561509,1770292244850,-1000.0,0.00115441,120]
[404561510,1770292244860,-1000.0,0.00115441,120]
[404561511,1770292244870,-10000.0,0.00118,120]
[404561512,1770292244879,-11343.04760079,0.001199,2]
[404561513,1770292244888,-420436.2444492,0.0011999,120]
[404561555,1770292245594,-4000.38660842,0.0011999,120]
[404561560,1770292247323,-338.09823649,0.00041982,4]
[404561561,1770292247332,-185.904148,0.00058079,120]
[404561562,1770292247342,-292.7,0.0006028,10]
[404561563,1770292247351,-421.219107,0.00074841,120]
[404561564,1770292247360,-489.023884,0.00074841,120]
[404561565,1770292247369,-556.828661,0.00074841,120]
[404561566,1770292247378,-10904.44692636,0.0011999,120]
[404561567,1770292247897,-694.94957054,0.00043123,4]
[404561568,1770292265604,204.9028705,0.00039955,120]
[404561572,1770292623218,500.0,0.00013273,2]
[404561573,1770292733181,327.8051545,0.00040078,120]
[404561575,1770292833922,168.68,0.00030137,120]
[404561582,1770293254097,-557.16211942,0.00026849,2]
[404561583,1770293286246,500.0,0.00013699,2]
[404561584,1770293349145,-164.22682849,0.00014247,2]
[404561585,1770293349173,-1991.22275984,0.00026575,2]
[404561586,1770293349196,-1041.66666667,0.00031398,2]
[404561587,1770293349223,-152.00917047,0.00032,120]
[404561588,1770293349247,-155.73182908,0.000332,117]